bitfinex/quotes_BTCUSD_20230403
["timestamp","ask_amount","ask_price","bid_price","bid_amount"]
[1680545157007,4.70861768,28001.0,28000.0,0.022039]
[1680545157234,5.49390423,28001.0,28000.0,0.022039]
[1680545157459,3.90011768,28001.0,28000.0,0.022039]
[1680545157712,3.72720008,28001.0,28000.0,0.022039]
[1680545157938,1.53038704,28001.0,28000.0,0.022039]
[1680545158215,1.44608704,28001.0,28000.0,0.022039]
[1680545158432,0.71908704,28001.0,28000.0,0.022039]
[1680545158664,0.74608704,28001.0,28000.0,0.022039]
[1680545159115,0.74608704,28001.0,28000.0,0.05928835]
[1680545159340,0.37018704,28001.0,28000.0,0.0594477]
[1680545159825,0.42456548,28001.0,28000.0,0.0594477]
[1680545160044,0.45156548,28001.0,28000.0,0.0594477]
[1680545160284,0.42456548,28001.0,28000.0,0.0594477]
[1680545160987,0.45156548,28001.0,28000.0,0.0594477]
[1680545161216,0.76006548,28001.0,28000.0,0.0594477]
[1680545162326,0.73306548,28001.0,28000.0,0.0594477]
[1680545162549,0.76006548,28001.0,28000.0,0.0594477]
[1680545162783,1.13596548,28001.0,28000.0,0.0594477]
[1680545163003,1.22056548,28001.0,28000.0,0.0594477]
[1680545163237,0.3759,27999.0,27994.0,0.72437431]
[1680545163468,0.89582711,27998.0,27994.0,0.41589431]
[1680545163691,0.029569,27997.0,27994.0,0.41595431]
[1680545163922,0.33660388,27996.0,27994.0,0.41571431]
[1680545164149,0.33678388,27996.0,27995.0,0.03386973]
[1680545164368,0.78602795,27996.0,27995.0,0.03386973]
[1680545165055,0.78602795,27996.0,27993.0,0.0209]
[1680545165352,0.03297,27995.0,27993.0,0.0209]
[1680545165623,0.048,27998.0,27995.0,0.19982]
[1680545166000,0.3304933,27997.0,27995.0,0.19982]
[1680545166183,0.024,27996.0,27995.0,0.19982]
[1680545166431,0.031411,27996.0,27995.0,0.2]
[1680545166709,0.2989723,27997.0,27995.0,0.2]
[1680545166940,0.03968,27998.0,27995.0,0.2]
[1680545166941,0.00018,27998.0,27995.0,0.2]
[1680545167236,0.027,27997.0,27996.0,0.085]
[1680545167519,0.30018,28001.0,27998.0,0.59982]
[1680545167805,0.30018,28001.0,27998.0,0.68412]
[1680545167806,0.00018,28001.0,27998.0,0.68412]
[1680545168291,0.012498,28005.0,28002.0,0.19982]
[1680545168581,0.00018,28007.0,28002.0,0.19982]
[1680545168855,0.00018,28008.0,28002.0,0.19982]
[1680545169134,0.00018,28008.0,28003.0,0.03284925]
[1680545169135,0.29788816,28008.0,28003.0,0.03284925]
[1680545169491,0.29806816,28008.0,28003.0,0.03284925]
[1680545169768,0.012496,28009.0,28003.0,0.03284925]
[1680545169769,0.011,28007.0,28006.0,0.19982]
[1680545170060,0.00018,28013.0,28009.0,0.19982]
[1680545170340,0.2971233,28012.0,28009.0,0.28492]
[1680545170616,0.00018,28012.0,28009.0,0.28492]
[1680545170901,0.012494,28014.0,28009.0,0.28492]
[1680545171276,0.29705958,28013.0,28009.0,0.28492]
[1680545171279,0.30175783,28014.0,28009.0,0.28492]
[1680545171508,0.00018,28014.0,28013.0,0.0851]
[1680545171733,0.018,28014.0,28013.0,0.0851]
[1680545171994,0.012672,28017.0,28013.0,0.0851]
[1680545172199,0.29661356,28016.0,28014.0,0.0851]
[1680545172421,0.29679356,28016.0,28014.0,0.0851]
[1680545172928,0.032132,28015.0,28014.0,0.0851]
[1680545173180,0.032312,28015.0,28014.0,0.0851]
[1680545173410,0.07934311,28015.0,28014.0,0.0851]
[1680545173628,0.07934311,28015.0,28013.0,0.19982]
[1680545173843,0.032651,28014.0,28013.0,0.19982]
[1680545174072,0.032831,28014.0,28013.0,0.19982]
[1680545174291,0.04721111,28015.0,28013.0,0.19982]
[1680545174517,0.06681947,28014.0,28013.0,0.19982]
[1680545174734,0.04755547,28014.0,28013.0,0.19982]
[1680545174955,0.08039747,28014.0,28013.0,0.19982]
[1680545175199,0.37720217,28014.0,28013.0,0.19982]
[1680545175434,0.36470917,28014.0,28013.0,0.19982]
[1680545175650,0.38270917,28014.0,28013.0,0.19982]
[1680545175894,0.37720217,28014.0,28013.0,0.19982]
[1680545176130,0.40120217,28014.0,28013.0,0.19982]
[1680545177038,0.37720217,28014.0,28012.0,0.19982]
[1680545177261,0.36577464,28013.0,28012.0,0.19982]
[1680545177486,0.33476864,28013.0,28012.0,0.19982]
[1680545177931,0.36567164,28013.0,28012.0,0.19982]
[1680545178160,0.35276864,28013.0,28012.0,0.19982]
[1680545178392,0.37926964,28013.0,28012.0,0.19982]
[1680545178626,0.39726964,28013.0,28010.0,0.00018]
[1680545178848,0.39726964,28013.0,28007.0,0.4775]
[1680545178849,0.07165221,28012.0,28007.0,0.47768]
[1680545179237,0.91587229,28011.0,28007.0,0.47768]
[1680545179463,0.432107,28010.0,28007.0,0.4775]
[1680545179726,0.34132496,28009.0,28007.0,0.4775]
[1680545179974,0.034118,28008.0,28005.0,0.00018]
[1680545180212,0.0469195,28007.0,28004.0,0.19982]
[1680545180460,0.032007,28006.0,28004.0,0.19982]
[1680545181171,0.3759,28004.0,28003.0,0.03302925]
[1680545181397,0.32988444,28004.0,28003.0,0.03284925]
[1680545181676,0.031805,28004.0,28003.0,0.03284925]
[1680545181929,0.032208,28005.0,28003.0,0.03284925]
[1680545182166,0.3344235,28007.0,28004.0,0.28422]
[1680545182167,0.00018,28007.0,28004.0,0.28422]
[1680545182414,0.012854,28012.0,28008.0,0.19982]
[1680545182656,0.32862775,28011.0,28008.0,0.19982]
[1680545182888,0.29743075,28011.0,28008.0,0.19982]
[1680545184071,0.32443075,28011.0,28009.0,0.03208427]
[1680545184303,0.33112323,28011.0,28009.0,0.03208427]
[1680545184557,0.36761823,28011.0,28009.0,0.03208427]
[1680545184790,0.032599,28010.0,28009.0,0.03208427]
[1680545185024,0.32991348,28010.0,28009.0,0.03208427]
[1680545185244,0.33009348,28010.0,28009.0,0.03208427]
[1680545185504,0.37042158,28010.0,28009.0,0.03208427]
[1680545186200,0.38291658,28010.0,28009.0,0.03208427]
[1680545186431,0.40991658,28010.0,28009.0,0.03208427]
[1680545186661,1.06749658,28010.0,28009.0,0.03208427]
[1680545186945,1.17939658,28010.0,28009.0,0.03208427]
[1680545187164,1.15239658,28010.0,28009.0,0.03208427]
[1680545187396,1.17939658,28010.0,28009.0,0.03208427]
[1680545187631,1.17032658,28010.0,28009.0,0.03208427]
[1680545187864,1.38655538,28010.0,28009.0,0.03208427]
[1680545188097,0.00018,28004.0,27998.0,0.4]
[1680545188323,0.47779106,28003.0,27998.0,0.4]
[1680545188551,0.47779106,28003.0,27998.0,0.40018]
[1680545188552,0.11811511,28002.0,27998.0,0.40018]
[1680545188784,0.48330862,28001.0,27997.0,0.2]
[1680545189013,0.0325,28000.0,27999.0,0.03335942]
[1680545189246,0.045,28000.0,27999.0,0.03335942]
[1680545189475,0.09040909,28000.0,27999.0,0.03335942]
[1680545189919,0.09040909,28000.0,27997.0,0.2]
[1680545190158,0.08190909,28000.0,27997.0,0.19994]
[1680545190387,0.08208909,28000.0,27997.0,0.19994]
[1680545191305,0.032391,27999.0,27997.0,0.19994]
[1680545191530,0.02393001,27998.0,27997.0,0.00018]
[1680545191754,0.05483201,27998.0,27996.0,0.45438]
[1680545192032,0.03195,27997.0,27996.0,0.45438]
[1680545192256,0.03195,27997.0,27996.0,0.00018]
[1680545192487,0.03195,27997.0,27994.0,0.00018]
[1680545192717,0.012501,27997.0,27994.0,0.00018]
[1680545192942,0.33433852,27998.0,27994.0,0.00018]
[1680545193177,0.10453785,27997.0,27994.0,0.00012]
[1680545193414,0.031916,27996.0,27994.0,0.00018]
[1680545193636,0.012501,27997.0,27993.0,0.02108]
[1680545194348,0.32283952,27998.0,27993.0,0.02108]
[1680545194596,0.042489,27997.0,27993.0,0.02108]
[1680545194827,0.32283952,27998.0,27993.0,0.02108]
[1680545195059,0.024,27997.0,27993.0,0.02108]
[1680545195302,0.32283952,27998.0,27993.0,0.02108]
[1680545195517,0.32683952,27998.0,27993.0,0.02108]
[1680545195979,0.34683952,27998.0,27993.0,0.02108]
[1680545196191,0.32283952,27998.0,27993.0,0.02108]
[1680545196408,0.32683952,27998.0,27993.0,0.02108]
[1680545196626,0.31540951,27998.0,27993.0,0.02108]
[1680545197346,0.45330632,27998.0,27993.0,0.02108]
[1680545197603,0.47730632,27998.0,27993.0,0.02108]
[1680545197872,0.31140951,27998.0,27993.0,0.02108]
[1680545198097,0.31540951,27998.0,27993.0,0.02108]
[1680545198365,0.03405905,27997.0,27993.0,0.02108]
[1680545198598,0.04656005,27997.0,27993.0,0.02108]
[1680545199117,0.04656005,27997.0,27994.0,0.03399733]
[1680545199391,0.03405905,27997.0,27994.0,0.03399733]
[1680545199899,0.04656005,27997.0,27994.0,0.03399733]
[1680545200153,0.07056005,27997.0,27994.0,0.03399733]
[1680545200392,0.03694686,27996.0,27994.0,0.03399733]
[1680545201694,0.05394686,27996.0,27994.0,0.03399733]
[1680545201919,0.29916367,27995.0,27994.0,0.03399733]
[1680545202199,0.31166567,27995.0,27994.0,0.03417733]
[1680545202396,0.42173764,27995.0,27994.0,0.03399733]
[1680545202619,0.71996819,27995.0,27994.0,0.03399733]
[1680545202866,0.35256819,27995.0,27994.0,0.03399733]
[1680545203101,0.00018,27996.0,27993.0,0.0209]
[1680545203339,0.29933,27996.0,27993.0,0.0209]
[1680545203804,0.027,27995.0,27993.0,0.0209]
[1680545204021,0.29933,27996.0,27994.0,0.03399733]
[1680545204247,0.031202,27995.0,27994.0,0.03399733]
[1680545205169,0.031382,27995.0,27994.0,0.03399733]
[1680545205390,0.00018,27995.0,27994.0,0.03399733]
[1680545205848,0.02418,27995.0,27994.0,0.03399733]
[1680545206084,0.00018,27995.0,27994.0,0.03399733]
[1680545206305,0.02718,27995.0,27994.0,0.03399733]
[1680545206758,0.06600267,27994.0,27993.0,0.0209]
[1680545208109,0.06600267,27994.0,27993.0,0.04853761]
[1680545208344,0.06600267,27994.0,27993.0,0.04784161]
[1680545208558,0.06600267,27994.0,27993.0,0.02102761]
[1680545208779,0.08300267,27994.0,27993.0,0.02102761]
[1680545208998,0.06600267,27994.0,27993.0,0.02102761]
[1680545209226,0.09300267,27994.0,27993.0,0.04696561]
[1680545209441,0.06600267,27994.0,27993.0,0.02102761]
[1680545209658,0.08300267,27994.0,27993.0,0.04629161]
[1680545209923,0.06600267,27994.0,27993.0,0.04629161]
[1680545210150,0.09300267,27994.0,27993.0,0.02102761]
[1680545210382,0.06600267,27994.0,27993.0,0.02102761]
[1680545210611,0.08300267,27994.0,27993.0,0.02102761]
[1680545211070,0.08300267,27994.0,27993.0,0.04657461]
[1680545211758,0.08300267,27994.0,27993.0,0.02102761]
[1680545211985,0.06600267,27994.0,27993.0,0.04753861]
[1680545212208,0.09300267,27994.0,27993.0,0.02102761]
[1680545212455,0.06600267,27994.0,27993.0,0.02102761]
[1680545212678,0.08300267,27994.0,27993.0,0.02102761]
[1680545213116,0.06600267,27994.0,27993.0,0.04751961]
[1680545213345,0.06600267,27994.0,27993.0,0.02102761]
[1680545213346,0.07700267,27994.0,27993.0,0.02102761]
[1680545213578,0.06600267,27994.0,27993.0,0.02102761]
[1680545213815,0.09000267,27994.0,27993.0,0.02102761]
[1680545216466,0.06600267,27994.0,27993.0,0.02102761]
[1680545216699,0.09000267,27994.0,27993.0,0.02102761]
[1680545216937,0.09000267,27994.0,27993.0,0.04661361]
[1680545217155,0.09000267,27994.0,27993.0,0.21797361]
[1680545217707,0.09000267,27994.0,27993.0,0.189582]
[1680545217926,0.09000267,27994.0,27993.0,0.018222]
[1680545218815,0.06600267,27994.0,27993.0,0.018222]
[1680545219030,0.09000267,27994.0,27993.0,0.018222]
[1680545219705,0.06600267,27994.0,27993.0,0.018222]
[1680545220377,0.05725787,27994.0,27993.0,0.018222]
[1680545221262,0.08125787,27994.0,27993.0,0.018222]
[1680545221505,0.06125787,27994.0,27993.0,0.018222]
[1680545221979,0.06125787,27994.0,27992.0,0.19226]
[1680545221980,0.028778,27993.0,27992.0,0.19226]
[1680545222213,0.028778,27993.0,27992.0,0.205598]
[1680545223145,0.028778,27993.0,27992.0,0.20572562]
[1680545223821,0.028778,27993.0,27992.0,0.30511008]
[1680545224083,0.028778,27993.0,27992.0,0.24791221]
[1680545224308,0.028778,27993.0,27992.0,0.180935]
[1680545224533,0.028778,27993.0,27992.0,0.009515]
[1680545224784,0.028778,27993.0,27991.0,0.17142]
[1680545225032,0.028958,27993.0,27989.0,0.2]
[1680545225257,0.17085481,27993.0,27988.0,0.77007695]
[1680545225490,0.17085481,27993.0,27988.0,0.17043695]
[1680545225491,0.44155729,27992.0,27988.0,0.17043695]
[1680545225714,0.44155729,27992.0,27987.0,0.38461523]
[1680545225715,0.048668,27991.0,27987.0,0.38461523]
[1680545225952,0.29985193,27990.0,27989.0,0.00038291]
[1680545226858,0.31685193,27990.0,27989.0,0.00038291]
[1680545227089,0.31685193,27990.0,27987.0,0.08515695]
[1680545227587,0.31703193,27990.0,27987.0,0.08515695]
[1680545227848,0.30003193,27990.0,27987.0,0.08515695]
[1680545228115,0.30403193,27990.0,27987.0,0.08515695]
[1680545228572,0.30403193,27990.0,27987.0,0.10302195]
[1680545228775,0.00418,27990.0,27988.0,0.4]
[1680545229037,0.00418,27990.0,27988.0,0.57193057]
[1680545229257,0.00018,27990.0,27989.0,0.009734]
[1680545229479,0.00018,27990.0,27988.0,0.40051057]
[1680545229696,0.00018,27990.0,27988.0,0.57193057]
[1680545229697,0.00418,27990.0,27988.0,0.57193057]
[1680545229919,0.00018,27990.0,27988.0,0.65708752]
[1680545230145,0.01118,27990.0,27989.0,0.009869]
[1680545230367,0.01118,27990.0,27988.0,0.65708752]
[1680545230619,0.01118,27990.0,27988.0,0.48566752]
[1680545230864,0.01118,27990.0,27988.0,0.08566752]
[1680545231104,0.01118,27990.0,27988.0,0.00051057]
[1680545231576,0.023684,27990.0,27988.0,0.00051057]
[1680545231804,0.35026593,27989.0,27988.0,0.00051057]
[1680545232035,0.40284572,27989.0,27988.0,0.00051057]
[1680545233075,0.00018,27986.0,27985.0,0.0209]
[1680545233988,0.01718,27986.0,27985.0,0.0209]
[1680545234229,0.06601,27986.0,27985.0,0.0209]
[1680545234675,0.06453,27986.0,27985.0,0.0209]
[1680545234896,0.1072515,27986.0,27985.0,0.0209]
[1680545235123,0.0902515,27986.0,27985.0,0.0209]
[1680545235344,0.1072515,27986.0,27985.0,0.0209]
[1680545238768,0.1197575,27986.0,27985.0,0.0209]
[1680545239437,0.1027575,27986.0,27985.0,0.0209]
[1680545239645,0.1197575,27986.0,27985.0,0.0209]
[1680545240333,0.1072515,27986.0,27985.0,0.0209]
[1680545243176,0.0599015,27986.0,27985.0,0.0209]
[1680545243410,0.1076805,27986.0,27985.0,0.0209]
[1680545243860,0.0429015,27986.0,27985.0,0.02179359]
[1680545244077,0.0669015,27986.0,27985.0,0.02179359]
[1680545244300,0.1140075,27986.0,27985.0,0.02179359]
[1680545244966,0.0669015,27986.0,27985.0,0.02179359]
[1680545245199,0.1155835,27986.0,27985.0,0.02179359]
[1680545246070,0.0669015,27986.0,27985.0,0.02179359]
[1680545246282,0.1270465,27986.0,27985.0,0.02179359]
[1680545247572,0.42734528,27986.0,27985.0,0.02179359]
[1680545247792,0.42752528,27986.0,27985.0,0.02179359]
[1680545248565,0.40352528,27986.0,27985.0,0.02179359]
[1680545248788,0.42752528,27986.0,27985.0,0.02179359]
[1680545249723,0.40352528,27986.0,27985.0,0.02179359]
[1680545249939,0.43052528,27986.0,27985.0,0.02179359]
[1680545252589,0.40352528,27986.0,27985.0,0.02179359]
[1680545252812,0.00320641,27985.0,27984.0,0.0209]
[1680545253049,0.40067925,27985.0,27984.0,0.0209]
[1680545253530,0.40067925,27985.0,27984.0,0.02078]
[1680545253755,0.42467925,27985.0,27984.0,0.02078]
[1680545253983,0.42467925,27985.0,27984.0,0.02090769]
[1680545254671,0.02720641,27985.0,27984.0,0.02090769]
[1680545256132,0.07703241,27985.0,27984.0,0.02090769]
[1680545258180,0.01609231,27984.0,27983.0,0.0209]
[1680545258405,0.06594497,27984.0,27983.0,0.0209]
[1680545258894,0.01617397,27984.0,27983.0,0.02102771]
[1680545259361,0.04309231,27984.0,27983.0,0.02102771]
[1680545260074,0.09195431,27984.0,27983.0,0.02102771]
[1680545261487,0.04309231,27984.0,27983.0,0.02102771]
[1680545261969,0.09006031,27984.0,27983.0,0.00012771]
[1680545262209,0.00018,27982.0,27980.0,0.01314971]
[1680545262445,0.00018,27982.0,27980.0,0.41314971]
[1680545262971,0.00018,27982.0,27980.0,0.01314971]
[1680545263220,0.00018,27982.0,27981.0,0.00025543]
[1680545264218,0.01118,27982.0,27981.0,0.00025543]
[1680545264503,0.35587152,27982.0,27981.0,0.00025543]
[1680545264785,1.17989552,27982.0,27981.0,0.00025543]
[1680545265514,1.37989552,27982.0,27981.0,0.00025543]
[1680545265521,1.36295552,27982.0,27981.0,0.00025543]
[1680545265809,0.98915952,27982.0,27981.0,0.00025543]
[1680545266071,0.98915952,27982.0,27980.0,0.01314971]
[1680545266072,0.2,27981.0,27980.0,0.01314971]
[1680545266300,0.96075126,27981.0,27980.0,0.01314971]
[1680545266528,0.74824326,27981.0,27980.0,0.01314971]
[1680545267051,0.76075126,27981.0,27980.0,0.01314971]
[1680545267589,0.78775126,27981.0,27980.0,0.01314971]
[1680545268063,0.76257126,27981.0,27980.0,0.01314971]
[1680545269000,0.02591,27981.0,27980.0,0.01314971]
[1680545269504,0.040996,27982.0,27980.0,0.01314971]
[1680545269733,0.34186945,27982.0,27980.0,0.01314971]
[1680545270016,0.068169,27981.0,27980.0,0.01353287]
[1680545270286,0.30105345,27982.0,27980.0,0.01353287]
[1680545270531,0.040802,27981.0,27980.0,0.01353287]
[1680545270988,0.067802,27981.0,27980.0,0.01353287]
[1680545271672,0.040802,27981.0,27980.0,0.01353287]
[1680545271894,0.067802,27981.0,27980.0,0.01353287]
[1680545272138,0.01646713,27980.0,27978.0,0.0209]
[1680545272589,0.01664713,27980.0,27978.0,0.00480769]
[1680545272835,0.01664713,27980.0,27976.0,0.28331058]
[1680545273095,0.01664713,27980.0,27979.0,0.00012773]
[1680545273557,0.04364713,27980.0,27979.0,0.00012773]
[1680545273788,0.01664713,27980.0,27979.0,0.00012773]
[1680545274008,0.04364713,27980.0,27976.0,0.28331058]
[1680545275667,0.01664713,27980.0,27977.0,0.00038324]
[1680545275923,0.03364713,27980.0,27977.0,0.00038324]
[1680545276119,0.01664713,27980.0,27977.0,0.00038324]
[1680545276349,0.08787599,27980.0,27977.0,0.00038324]
[1680545276583,0.01664713,27980.0,27977.0,0.00038324]
[1680545276833,0.04064713,27980.0,27977.0,0.00038324]
[1680545277077,0.01664713,27980.0,27975.0,0.65663695]
[1680545277311,0.04064713,27980.0,27976.0,0.016737]
[1680545277548,0.04064713,27980.0,27976.0,0.10189395]
[1680545277777,0.04064713,27980.0,27975.0,0.80236823]
[1680545278021,0.04064713,27980.0,27976.0,0.10215195]
[1680545278269,0.04064713,27980.0,27975.0,0.80236823]
[1680545278492,0.05081719,27980.0,27976.0,0.10189595]
[1680545278732,0.06781719,27980.0,27976.0,0.08515695]
[1680545278964,0.06781719,27980.0,27976.0,0.25663695]
[1680545279199,0.03364713,27980.0,27976.0,0.08515695]
[1680545279450,0.03364713,27980.0,27977.0,0.017]
[1680545279679,0.03364713,27980.0,27976.0,0.25663695]
[1680545279906,0.03364713,27980.0,27976.0,0.08515695]
[1680545280359,0.01664713,27980.0,27976.0,0.10302895]
[1680545280850,0.01664713,27980.0,27976.0,0.27450895]
[1680545281097,0.01646713,27980.0,27977.0,0.27317695]
[1680545281317,0.04046713,27980.0,27978.0,0.434855]
[1680545281543,0.01646713,27980.0,27979.0,0.016824]
[1680545281775,0.03446713,27980.0,27979.0,0.034694]
[1680545282040,0.03446713,27980.0,27979.0,0.016824]
[1680545282041,0.01646713,27980.0,27979.0,0.016824]
[1680545282261,0.01746713,27980.0,27979.0,0.016824]
[1680545282482,0.01646713,27980.0,27979.0,0.016824]
[1680545282706,0.02046713,27980.0,27979.0,0.016824]
[1680545282928,0.01646713,27980.0,27979.0,0.016824]
[1680545283155,0.02046713,27980.0,27979.0,0.016824]
[1680545283638,0.02046713,27980.0,27977.0,0.417871]
[1680545283872,0.02046713,27980.0,27978.0,0.017124]
[1680545284106,0.01646713,27980.0,27979.0,0.016805]
[1680545284356,0.31771217,27980.0,27978.0,0.016401]
[1680545284662,0.31789217,27980.0,27976.0,0.40018]
[1680545284897,0.02082713,27980.0,27977.0,0.017871]
[1680545285127,0.01664713,27980.0,27977.0,0.017871]
[1680545285362,0.02764713,27980.0,27977.0,0.017871]
[1680545285591,0.01664713,27980.0,27977.0,0.017871]
[1680545285826,0.02064713,27980.0,27977.0,0.017871]
[1680545286749,0.46373673,27980.0,27976.0,0.4]
[1680545286982,0.04637367,27979.0,27976.0,0.017872]
[1680545287209,0.04637367,27979.0,27975.0,0.418052]
[1680545287461,0.04637367,27979.0,27975.0,0.417872]
[1680545287691,0.01682713,27980.0,27975.0,0.417872]
[1680545287916,0.01664713,27980.0,27975.0,0.589352]
[1680545288382,0.001,27979.0,27975.0,0.589352]
[1680545288628,0.01664713,27980.0,27975.0,0.589352]
[1680545289086,0.01664713,27980.0,27975.0,0.566863]
[1680545289311,0.01664713,27980.0,27975.0,0.395383]
[1680545289537,0.01664713,27980.0,27975.0,0.566863]
[1680545290970,0.042709,27979.0,27975.0,0.566863]
[1680545291206,0.01664713,27980.0,27975.0,0.566863]
[1680545291906,0.44321735,27979.0,27975.0,0.566863]
[1680545292140,0.041515,27978.0,27975.0,0.17148]
[1680545292425,0.041515,27978.0,27974.0,0.511273]
[1680545292426,0.041695,27978.0,27974.0,0.511273]
[1680545292648,0.30132054,27979.0,27974.0,0.511273]
[1680545292649,0.30150054,27979.0,27974.0,0.511273]
[1680545293112,0.00018,27979.0,27974.0,0.62651472]
[1680545293340,0.004,27978.0,27974.0,0.71167167]
[1680545293572,0.01664713,27980.0,27975.0,0.18812]
[1680545293573,0.00018,27980.0,27975.0,0.18812]
[1680545293808,0.00018,27980.0,27976.0,0.017872]
[1680545293809,0.004,27979.0,27976.0,0.017872]
[1680545294035,0.00018,27983.0,27978.0,0.7759]
[1680545294271,0.00018,27983.0,27979.0,0.035211]
[1680545294496,0.00320641,27985.0,27980.0,0.017026]
[1680545294725,0.00320641,27985.0,27981.0,0.017868]
[1680545295761,0.00018,27983.0,27981.0,0.017868]
[1680545295990,0.00018,27983.0,27982.0,0.017279]
[1680545296677,0.00018,27983.0,27980.0,0.17148]
[1680545296919,0.00018,27983.0,27980.0,0.189349]
[1680545296920,0.00418,27983.0,27980.0,0.189349]
[1680545297151,0.00418,27983.0,27980.0,0.589349]
[1680545297379,0.00418,27983.0,27981.0,0.01707]
[1680545298283,0.00018,27983.0,27981.0,0.01707]
[1680545298511,0.00118,27983.0,27981.0,0.01707]
[1680545298739,0.00018,27983.0,27981.0,0.01707]
[1680545299444,0.00018,27983.0,27979.0,0.17148]
[1680545299678,0.14207681,27983.0,27978.0,0.17148]
[1680545299910,0.14225681,27983.0,27978.0,0.17148]
[1680545300181,0.15805383,27983.0,27978.0,0.17148]
[1680545300409,0.041499,27982.0,27978.0,0.17148]
[1680545300629,0.041679,27982.0,27978.0,0.17148]
[1680545300855,0.00018,27982.0,27977.0,0.25663695]
[1680545301091,0.14207681,27982.0,27978.0,0.17148]
[1680545301346,0.00018,27982.0,27978.0,0.18935]
[1680545301589,0.01597702,27983.0,27977.0,0.27450795]
[1680545301838,0.30100118,27982.0,27978.0,0.17148]
[1680545302059,0.30118118,27982.0,27977.0,0.08841444]
[1680545302293,0.30118118,27982.0,27977.0,0.33858748]
[1680545302294,0.00018,27982.0,27977.0,0.33858748]
[1680545302527,0.00036,27983.0,27978.0,0.17148]
[1680545302744,0.30211731,27983.0,27978.0,0.17148]
[1680545302972,0.30129731,27983.0,27977.0,0.39590232]
[1680545303204,0.001,27982.0,27978.0,0.17148]
[1680545303419,0.00118,27982.0,27978.0,0.2316924]
[1680545303889,0.00118,27982.0,27977.0,0.29933828]
[1680545304118,0.00118,27982.0,27976.0,0.14572928]
[1680545304119,0.14207681,27982.0,27976.0,0.14572928]
[1680545304347,0.00018,27979.0,27977.0,0.17148]
[1680545304563,0.00018,27979.0,27977.0,0.189351]
[1680545304795,0.00018,27979.0,27977.0,0.17148]
[1680545305712,0.00218,27979.0,27977.0,0.29933828]
[1680545305922,0.00018,27979.0,27977.0,0.29933828]
[1680545306145,0.00018,27979.0,27977.0,0.17148]
[1680545306651,0.00018,27979.0,27976.0,0.46981598]
[1680545306922,0.14207681,27979.0,27975.0,0.12785828]
[1680545307116,0.01420768,27978.0,27975.0,0.12785828]
[1680545307341,0.01420768,27978.0,27976.0,0.017872]
[1680545307564,0.01420768,27978.0,27975.0,0.31620798]
[1680545307786,0.00018,27979.0,27975.0,0.29833598]
[1680545308018,0.00118,27979.0,27975.0,0.29833598]
[1680545308247,0.00018,27979.0,27975.0,0.29833598]
[1680545308695,0.00018,27979.0,27976.0,0.29833598]
[1680545308922,0.00018,27979.0,27977.0,0.59779028]
[1680545309159,0.00018,27984.0,27978.0,0.14448928]
[1680545309383,0.00018,27982.0,27979.0,0.01787]
[1680545309609,0.00018,27982.0,27980.0,0.017689]
[1680545309834,0.00018,27983.0,27980.0,0.035558]
[1680545310055,0.00036,27983.0,27980.0,0.017869]
[1680545310271,0.00036,27983.0,27981.0,0.016755]
[1680545310272,0.00018,27983.0,27981.0,0.016755]
[1680545310780,0.00018,27980.0,27976.0,0.29851598]
[1680545310997,0.44315347,27979.0,27975.0,0.29833598]
[1680545311236,0.44333347,27979.0,27975.0,0.12785828]
[1680545311471,0.00018,27976.0,27974.0,0.12785828]
[1680545311710,0.008528,27975.0,27974.0,0.12785828]
[1680545311943,0.04069,27975.0,27974.0,0.0856531]
[1680545312172,0.053993,27976.0,27973.0,0.21351138]
[1680545312409,0.04346,27975.0,27973.0,0.21351138]
[1680545312637,0.049093,27975.0,27973.0,0.0856531]
[1680545312860,0.04275,27974.0,27973.0,0.0856531]
[1680545313323,0.04275,27974.0,27972.0,0.23441138]
[1680545313553,0.00018,27973.0,27972.0,0.14875828]
[1680545313779,0.00018,27973.0,27972.0,0.23437895]
[1680545314226,0.00018,27973.0,27972.0,1.02987482]
[1680545314516,0.004,27974.0,27972.0,1.27237107]
[1680545314742,0.00018,27978.0,27973.0,0.18881626]
[1680545314973,0.00018,27978.0,27975.0,0.08561348]
[1680545315444,0.00018,27981.0,27977.0,0.08561348]
[1680545315678,0.00018,27981.0,27978.0,0.11963948]
[1680545315905,0.00018,27981.0,27979.0,0.4]
[1680545316135,0.00018,27981.0,27979.0,0.41787]
[1680545316372,0.00018,27981.0,27979.0,0.4]
[1680545316619,0.00218,27981.0,27979.0,0.4]
[1680545316837,0.00018,27981.0,27980.0,0.017503]
[1680545317074,0.00118,27981.0,27980.0,0.017503]
[1680545317298,0.00118,27981.0,27979.0,0.4]
[1680545317299,0.00018,27981.0,27979.0,0.4]
[1680545317521,0.00118,27981.0,27980.0,0.016405]
[1680545317749,0.00118,27981.0,27979.0,0.42087]
[1680545317974,0.00118,27981.0,27979.0,0.403]
[1680545318202,0.00118,27981.0,27980.0,0.016995]
[1680545318444,0.00118,27981.0,27979.0,0.403]
[1680545318662,0.00018,27981.0,27979.0,0.4]
[1680545318898,0.00018,27981.0,27979.0,0.52643053]
[1680545319130,0.00018,27981.0,27980.0,0.017984]
[1680545319364,0.00018,27981.0,27980.0,0.207333]
[1680545319590,0.00018,27981.0,27980.0,0.035853]
[1680545319811,0.00018,27981.0,27980.0,0.189464]
[1680545320281,0.00018,27981.0,27980.0,0.207333]
[1680545320512,0.00518,27981.0,27980.0,0.189464]
[1680545321110,0.00518,27981.0,27980.0,0.207333]
[1680545321440,0.005,27981.0,27980.0,0.207333]
[1680545321680,0.005,27981.0,27980.0,1.27773147]
[1680545321921,0.005,27981.0,27980.0,1.45163147]
[1680545322157,0.005,27981.0,27980.0,0.90450421]
[1680545322415,0.005,27981.0,27980.0,0.82271316]
[1680545322648,0.00320641,27985.0,27980.0,0.82271316]
[1680545322887,0.00018,27986.0,27981.0,0.39679359]
[1680545323130,0.00018,27986.0,27981.0,0.58614159]
[1680545323846,0.00018,27986.0,27982.0,0.01657]
[1680545324533,0.01118,27986.0,27982.0,0.01657]
[1680545324758,0.00018,27986.0,27982.0,0.01657]
[1680545325004,0.01818,27986.0,27981.0,0.65382275]
[1680545325233,0.01818,27986.0,27982.0,0.017891]
[1680545325889,0.00018,27986.0,27982.0,0.017891]
[1680545326132,0.01118,27986.0,27982.0,0.017891]
[1680545326348,0.01118,27986.0,27982.0,0.207239]